[Event "*** Titled Tuesday Blitz"]
[Site "Chess.com"]
[Date "2020.12.01"]
[Round "11"]
[White "XDPS"]
[Black "Iskusnyh"]
[Result "1-0"]
[WhiteElo "2775"]
[BlackElo "2631"]
[TimeControl "180+1"]
[EndTime "12:07:11 PST"]
[Termination "XDPS won on time"]

1. d4 {[%clk 0:03:00.9]} 1... d5 {[%clk 0:02:59.3]} 2. Bf4 {[%clk 0:03:01.3]}
2... Nf6 {[%clk 0:02:58.4]} 3. e3 {[%clk 0:03:01.5]} 3... c5 {[%clk 0:02:58.3]}
4. Nf3 {[%clk 0:03:00.9]} 4... Nc6 {[%clk 0:02:58.2]} 5. Nbd2 {[%clk 0:03:00.6]}
5... cxd4 {[%clk 0:02:57.5]} 6. exd4 {[%clk 0:03:00.2]} 6... Qb6 {[%clk
0:02:56.9]} 7. Nb3 {[%clk 0:02:58.7]} 7... Bg4 {[%clk 0:02:43.8]} 8. Be2 {[%clk
0:02:54.9]} 8... e6 {[%clk 0:02:43.1]} 9. O-O {[%clk 0:02:54.6]} 9... Be7 {[%clk
0:02:40.4]} 10. a4 {[%clk 0:02:54.3]} 10... a6 {[%clk 0:02:39.5]} 11. a5 {[%clk
0:02:48]} 11... Qd8 {[%clk 0:02:38.1]} 12. c3 {[%clk 0:02:48.1]} 12... O-O
{[%clk 0:02:37]} 13. Re1 {[%clk 0:02:48]} 13... Bxf3 {[%clk 0:02:19.3]} 14. Bxf3
{[%clk 0:02:47.4]} 14... Bd6 {[%clk 0:02:17.5]} 15. Bxd6 {[%clk 0:02:32.8]}
15... Qxd6 {[%clk 0:02:16.4]} 16. Nc5 {[%clk 0:02:28]} 16... Qc7 {[%clk
0:02:14.9]} 17. b4 {[%clk 0:02:27.8]} 17... Nd7 {[%clk 0:02:10.3]} 18. Nd3
{[%clk 0:02:16.6]} 18... Na7 {[%clk 0:02:03.8]} 19. Rc1 {[%clk 0:02:15.4]} 19...
Nb5 {[%clk 0:01:59.9]} 20. Qd2 {[%clk 0:02:14.2]} 20... Rac8 {[%clk 0:01:57]}
21. Re3 {[%clk 0:01:31.7]} 21... Nd6 {[%clk 0:01:50.7]} 22. Re2 {[%clk
0:01:24.2]} 22... Nc4 {[%clk 0:01:39.3]} 23. Qe1 {[%clk 0:01:22.7]} 23... b6
{[%clk 0:01:34.7]} 24. axb6 {[%clk 0:01:22.3]} 24... Qxb6 {[%clk 0:01:33.9]} 25.
Nc5 {[%clk 0:01:12.3]} 25... Nxc5 {[%clk 0:01:18]} 26. dxc5 {[%clk 0:01:13.2]}
26... Qc7 {[%clk 0:01:15.8]} 27. Ra2 {[%clk 0:01:08.6]} 27... a5 {[%clk
0:01:11.7]} 28. Be2 {[%clk 0:01:08.5]} 28... axb4 {[%clk 0:00:57.3]} 29. Bxc4
{[%clk 0:00:56.3]} 29... Qxc5 {[%clk 0:00:53]} 30. Bd3 {[%clk 0:00:49.5]} 30...
bxc3 {[%clk 0:00:51.6]} 31. Qe5 {[%clk 0:00:40]} 31... g6 {[%clk 0:00:41]} 32.
Rac2 {[%clk 0:00:37.2]} 32... d4 {[%clk 0:00:40.1]} 33. Qxc5 {[%clk 0:00:33.9]}
33... Rxc5 {[%clk 0:00:39.9]} 34. f4 {[%clk 0:00:34.5]} 34... g5 {[%clk
0:00:34.7]} 35. g3 {[%clk 0:00:29.9]} 35... Kg7 {[%clk 0:00:34.1]} 36. Kf2
{[%clk 0:00:29.8]} 36... gxf4 {[%clk 0:00:33.4]} 37. gxf4 {[%clk 0:00:30]} 37...
Kf6 {[%clk 0:00:33.5]} 38. Kf3 {[%clk 0:00:30.4]} 38... e5 {[%clk 0:00:27.4]}
39. Bxh7 {[%clk 0:00:27.7]} 39... Rh8 {[%clk 0:00:26.4]} 40. Be4 {[%clk
0:00:17.1]} 40... Rh3+ {[%clk 0:00:25]} 41. Kg2 {[%clk 0:00:17.5]} 41... Re3
{[%clk 0:00:24.8]} 42. fxe5+ {[%clk 0:00:16]} 42... Rxe5 {[%clk 0:00:23.6]} 43.
Rf2+ {[%clk 0:00:16.1]} 43... Ke7 {[%clk 0:00:21.8]} 44. Bb1 {[%clk 0:00:16.7]}
44... d3 {[%clk 0:00:20.1]} 45. Rxc3 {[%clk 0:00:12.1]} 45... d2 {[%clk
0:00:20.1]} 46. Rxe3 {[%clk 0:00:12.7]} 46... d1=Q {[%clk 0:00:18.2]} 47. Rxe5+
{[%clk 0:00:13.1]} 47... Kf8 {[%clk 0:00:18.4]} 48. Bf5 {[%clk 0:00:10.5]} 48...
Qd4 {[%clk 0:00:16.2]} 49. Re4 {[%clk 0:00:09.9]} 49... Qd5 {[%clk 0:00:15.9]}
50. Kg3 {[%clk 0:00:09.7]} 50... Qd6+ {[%clk 0:00:15]} 51. Ref4 {[%clk
0:00:09.8]} 51... Kg7 {[%clk 0:00:14.2]} 52. Bg4 {[%clk 0:00:09]} 52... Qe5
{[%clk 0:00:11.6]} 53. Kg2 {[%clk 0:00:08.9]} 53... Qd5+ {[%clk 0:00:11.5]} 54.
Bf3 {[%clk 0:00:07.8]} 54... Qc5 {[%clk 0:00:10.9]} 55. Rg4+ {[%clk 0:00:07.2]}
55... Kf8 {[%clk 0:00:11.1]} 56. h3 {[%clk 0:00:07.7]} 56... Qd6 {[%clk
0:00:09.4]} 57. Re2 {[%clk 0:00:07.6]} 57... Qd3 {[%clk 0:00:08.3]} 58. Rf2
{[%clk 0:00:07.1]} 58... Qd6 {[%clk 0:00:07.7]} 59. Be4 {[%clk 0:00:06.5]} 59...
Qe5 {[%clk 0:00:05.5]} 60. Rgf4 {[%clk 0:00:06.7]} 60... Qg5+ {[%clk 0:00:05]}
61. Kh2 {[%clk 0:00:05.6]} 61... Qh5 {[%clk 0:00:04.4]} 62. Bg2 {[%clk
0:00:03.9]} 62... Qe5 {[%clk 0:00:04]} 63. Kh1 {[%clk 0:00:03.4]} 63... Qe1+
{[%clk 0:00:03.2]} 64. Rf1 {[%clk 0:00:04]} 64... Qe6 {[%clk 0:00:02.8]} 65. Rf5
{[%clk 0:00:04.3]} 65... Qc4 {[%clk 0:00:01.9]} 66. Bd5 {[%clk 0:00:04.4]} 1-0

[Event "*** Titled Tuesday Blitz"]
[Site "Chess.com"]
[Date "2020.12.01"]
[Round "11"]
[White "StockholmMissile"]
[Black "GameOverBro"]
[Result "1-0"]
[WhiteElo "2404"]
[BlackElo "2510"]
[TimeControl "180+1"]
[EndTime "12:07:12 PST"]
[Termination "StockholmMissile won by resignation"]

1. d4 {[%clk 0:02:54.1]} 1... d6 {[%clk 0:02:49.2]} 2. Nf3 {[%clk 0:02:53.6]}
2... Nf6 {[%clk 0:02:44.7]} 3. c4 {[%clk 0:02:53.2]} 3... Nbd7 {[%clk 0:02:45]}
4. Nc3 {[%clk 0:02:52.2]} 4... e5 {[%clk 0:02:45]} 5. g3 {[%clk 0:02:52.4]} 5...
c6 {[%clk 0:02:44.7]} 6. Bg2 {[%clk 0:02:52.3]} 6... Be7 {[%clk 0:02:44.1]} 7.
O-O {[%clk 0:02:52.2]} 7... O-O {[%clk 0:02:44.6]} 8. b3 {[%clk 0:02:52.5]} 8...
Qc7 {[%clk 0:02:45.2]} 9. Bb2 {[%clk 0:02:52.4]} 9... Re8 {[%clk 0:02:45.7]} 10.
Qc2 {[%clk 0:02:52.5]} 10... a5 {[%clk 0:02:46.2]} 11. Rad1 {[%clk 0:02:52.5]}
11... h6 {[%clk 0:02:45.3]} 12. dxe5 {[%clk 0:02:47]} 12... dxe5 {[%clk
0:02:44.8]} 13. Nh4 {[%clk 0:02:46.7]} 13... Bf8 {[%clk 0:02:44.5]} 14. Ne4
{[%clk 0:02:36.6]} 14... Nxe4 {[%clk 0:02:42.1]} 15. Bxe4 {[%clk 0:02:36.1]}
15... Nf6 {[%clk 0:02:42.8]} 16. Bf5 {[%clk 0:02:31.5]} 16... a4 {[%clk
0:02:43.1]} 17. Bxc8 {[%clk 0:02:27.5]} 17... Qxc8 {[%clk 0:02:42.5]} 18. Nf5
{[%clk 0:02:16.9]} 18... axb3 {[%clk 0:02:33.6]} 19. axb3 {[%clk 0:02:17.8]}
19... Qe6 {[%clk 0:02:31.5]} 20. Ra1 {[%clk 0:02:10.1]} 20... g6 {[%clk
0:02:14.3]} 21. Ne3 {[%clk 0:02:05.1]} 21... Bc5 {[%clk 0:02:09.5]} 22. Nd1
{[%clk 0:01:50.8]} 22... Rxa1 {[%clk 0:01:59.4]} 23. Bxa1 {[%clk 0:01:50.3]}
23... h5 {[%clk 0:01:59.1]} 24. Nc3 {[%clk 0:01:43.9]} 24... Qg4 {[%clk
0:01:53.3]} 25. Kg2 {[%clk 0:01:26]} 25... e4 {[%clk 0:01:30]} 26. Nd1 {[%clk
0:01:01.5]} 26... Qf5 {[%clk 0:01:20.8]} 27. Ne3 {[%clk 0:00:59.7]} 27... Qe6
{[%clk 0:01:13]} 28. Qc3 {[%clk 0:00:54.8]} 28... Kg7 {[%clk 0:01:12.6]} 29. h3
{[%clk 0:00:48.9]} 29... Bd6 {[%clk 0:01:10.4]} 30. Bb2 {[%clk 0:00:46.3]} 30...
Be5 {[%clk 0:01:03.7]} 31. Qxe5 {[%clk 0:00:44.5]} 31... Qxe5 {[%clk 0:01:04.6]}
32. Bxe5 {[%clk 0:00:44.8]} 32... Rxe5 {[%clk 0:01:05.4]} 33. Ra1 {[%clk
0:00:45.3]} 33... b5 {[%clk 0:00:56.5]} 34. Ra6 {[%clk 0:00:42.2]} 34... bxc4
{[%clk 0:00:52.1]} 35. Nxc4 {[%clk 0:00:38.2]} 35... Rb5 {[%clk 0:00:47.1]} 36.
Rxc6 {[%clk 0:00:34]} 36... Rxb3 {[%clk 0:00:47]} 37. Rc7 {[%clk 0:00:32.7]}
37... Rb8 {[%clk 0:00:35.8]} 38. Nd6 {[%clk 0:00:27.9]} 38... Rf8 {[%clk
0:00:35.6]} 39. Re7 {[%clk 0:00:25.1]} 39... Kg8 {[%clk 0:00:34.4]} 40. Nxe4
{[%clk 0:00:23.1]} 40... Nxe4 {[%clk 0:00:34.4]} 41. Rxe4 {[%clk 0:00:23.8]}
41... Kg7 {[%clk 0:00:34.6]} 42. Ra4 {[%clk 0:00:22.3]} 42... Rb8 {[%clk
0:00:34.6]} 43. g4 {[%clk 0:00:21.3]} 43... hxg4 {[%clk 0:00:34.4]} 44. hxg4
{[%clk 0:00:21.9]} 44... Rb7 {[%clk 0:00:35]} 45. Kg3 {[%clk 0:00:21.7]} 45...
Rc7 {[%clk 0:00:35.6]} 46. e3 {[%clk 0:00:21.6]} 46... Rd7 {[%clk 0:00:36.2]}
47. Rc4 {[%clk 0:00:20.9]} 47... Re7 {[%clk 0:00:36.6]} 48. Kf4 {[%clk
0:00:19.7]} 48... Ra7 {[%clk 0:00:36.6]} 49. g5 {[%clk 0:00:19.2]} 49... Rb7
{[%clk 0:00:36.5]} 50. e4 {[%clk 0:00:19]} 50... Re7 {[%clk 0:00:36.5]} 51. Kg4
{[%clk 0:00:18.5]} 51... Rd7 {[%clk 0:00:36.4]} 52. Rb4 {[%clk 0:00:18.3]} 52...
Rd1 {[%clk 0:00:36.2]} 53. Kf4 {[%clk 0:00:17.5]} 53... Rd8 {[%clk 0:00:35.9]}
54. f3 {[%clk 0:00:17.5]} 54... Re8 {[%clk 0:00:36.1]} 55. Rb7 {[%clk
0:00:17.2]} 55... Re6 {[%clk 0:00:36.5]} 56. Kg4 {[%clk 0:00:16.7]} 56... Re8
{[%clk 0:00:36.6]} 57. Rd7 {[%clk 0:00:15.9]} 57... Re6 {[%clk 0:00:36.8]} 58.
Kf4 {[%clk 0:00:15.4]} 58... Re8 {[%clk 0:00:36.9]} 59. Ke3 {[%clk 0:00:15.6]}
59... Re6 {[%clk 0:00:36.1]} 60. f4 {[%clk 0:00:15.5]} 60... Ra6 {[%clk
0:00:35.4]} 61. f5 {[%clk 0:00:15.4]} 61... gxf5 {[%clk 0:00:34.5]} 62. exf5
{[%clk 0:00:15.3]} 62... Ra5 {[%clk 0:00:28.8]} 63. Kf4 {[%clk 0:00:12.5]} 63...
Ra4+ {[%clk 0:00:29.1]} 64. Kg3 {[%clk 0:00:12.5]} 64... Ra3+ {[%clk 0:00:29.2]}
65. Kg4 {[%clk 0:00:12.6]} 65... Ra4+ {[%clk 0:00:28.2]} 66. Kh5 {[%clk
0:00:12.3]} 66... Ra5 {[%clk 0:00:28.2]} 67. f6+ {[%clk 0:00:11.7]} 67... Kg8
{[%clk 0:00:23.6]} 68. Kh6 {[%clk 0:00:11.5]} 68... Ra8 {[%clk 0:00:21.6]} 69.
g6 {[%clk 0:00:10.8]} 69... fxg6 {[%clk 0:00:19.3]} 70. Kxg6 {[%clk 0:00:10.6]}
70... Rf8 {[%clk 0:00:17.8]} 71. Rg7+ {[%clk 0:00:10.4]} 71... Kh8 {[%clk
0:00:18.3]} 72. Rh7+ {[%clk 0:00:10.4]} 72... Kg8 {[%clk 0:00:18.8]} 73. f7+
{[%clk 0:00:10.8]} 73... Rxf7 {[%clk 0:00:19.3]} 74. Rxf7 {[%clk 0:00:11.7]} 1-0

[Event "*** Titled Tuesday Blitz"]
[Site "Chess.com"]
[Date "2020.12.01"]
[Round "11"]
[White "sopo-tereladze"]
[Black "The_Machine04"]
[Result "0-1"]
[WhiteElo "2313"]
[BlackElo "2433"]
[TimeControl "180+1"]
[EndTime "12:07:15 PST"]
[Termination "The_Machine04 won on time"]

1. d4 {[%clk 0:03:00.9]} 1... d6 {[%clk 0:02:47.4]} 2. Nf3 {[%clk 0:03:01.8]}
2... Nf6 {[%clk 0:02:44]} 3. Bf4 {[%clk 0:03:01]} 3... g6 {[%clk 0:02:42.9]} 4.
h3 {[%clk 0:03:01]} 4... Bg7 {[%clk 0:02:42.8]} 5. e3 {[%clk 0:03:01.5]} 5...
O-O {[%clk 0:02:42.9]} 6. Be2 {[%clk 0:03:01.9]} 6... Nc6 {[%clk 0:02:43.2]} 7.
O-O {[%clk 0:03:02.2]} 7... Nd7 {[%clk 0:02:43.1]} 8. Bh2 {[%clk 0:02:57.6]}
8... e5 {[%clk 0:02:43.2]} 9. dxe5 {[%clk 0:02:57.2]} 9... dxe5 {[%clk
0:02:44.1]} 10. Nc3 {[%clk 0:02:57.3]} 10... h6 {[%clk 0:02:43.2]} 11. Qd2
{[%clk 0:02:50.5]} 11... Kh7 {[%clk 0:02:42.9]} 12. Rad1 {[%clk 0:02:49.8]}
12... f5 {[%clk 0:02:41]} 13. Bc4 {[%clk 0:02:33.3]} 13... Nb6 {[%clk
0:02:33.3]} 14. Bb3 {[%clk 0:02:30]} 14... Qe7 {[%clk 0:02:24.8]} 15. Nd5 {[%clk
0:02:21.7]} 15... Nxd5 {[%clk 0:02:24.3]} 16. Qxd5 {[%clk 0:02:22.6]} 16... Rd8
{[%clk 0:02:19]} 17. Qf7 {[%clk 0:02:02.6]} 17... Qxf7 {[%clk 0:02:15.5]} 18.
Bxf7 {[%clk 0:02:03.5]} 18... Bd7 {[%clk 0:02:05.8]} 19. Bg3 {[%clk 0:01:26.4]}
19... Rab8 {[%clk 0:01:55.6]} 20. Rd2 {[%clk 0:01:23.7]} 20... Be8 {[%clk
0:01:54]} 21. Rxd8 {[%clk 0:01:20.9]} 21... Rxd8 {[%clk 0:01:51]} 22. Bxe8
{[%clk 0:01:20.8]} 22... Rxe8 {[%clk 0:01:50.2]} 23. Rd1 {[%clk 0:01:21.2]}
23... Re7 {[%clk 0:01:48.5]} 24. Rd5 {[%clk 0:01:19.1]} 24... Kg8 {[%clk
0:01:46.2]} 25. a3 {[%clk 0:01:17.7]} 25... Kf7 {[%clk 0:01:45.3]} 26. c3 {[%clk
0:01:12.8]} 26... Ke6 {[%clk 0:01:44.4]} 27. Rd2 {[%clk 0:00:41.7]} 27... Rd7
{[%clk 0:01:42.8]} 28. Rxd7 {[%clk 0:00:41.2]} 28... Kxd7 {[%clk 0:01:43.7]} 29.
Kf1 {[%clk 0:00:41.7]} 29... Ke6 {[%clk 0:01:43.5]} 30. Ke2 {[%clk 0:00:41.1]}
30... Kd5 {[%clk 0:01:42.6]} 31. Nd2 {[%clk 0:00:40.4]} 31... g5 {[%clk
0:01:37.4]} 32. f3 {[%clk 0:00:40.1]} 32... Na5 {[%clk 0:01:28.9]} 33. e4+
{[%clk 0:00:41]} 33... fxe4 {[%clk 0:01:24.8]} 34. fxe4+ {[%clk 0:00:41.9]}
34... Ke6 {[%clk 0:01:21.7]} 35. Kd3 {[%clk 0:00:42.8]} 35... b6 {[%clk
0:01:19.5]} 36. b4 {[%clk 0:00:40.6]} 36... Nb7 {[%clk 0:01:18.6]} 37. Bf2
{[%clk 0:00:40.9]} 37... Nd6 {[%clk 0:01:18.2]} 38. Be3 {[%clk 0:00:36.2]} 38...
Bf6 {[%clk 0:01:15.8]} 39. c4 {[%clk 0:00:35.4]} 39... h5 {[%clk 0:01:11.9]} 40.
a4 {[%clk 0:00:35.1]} 40... Be7 {[%clk 0:01:05.2]} 41. c5 {[%clk 0:00:34.7]}
41... Nb7 {[%clk 0:01:04.9]} 42. cxb6 {[%clk 0:00:29.5]} 42... cxb6 {[%clk
0:01:01.3]} 43. Kc3 {[%clk 0:00:27.3]} 43... Nd6 {[%clk 0:00:57.7]} 44. a5
{[%clk 0:00:24.2]} 44... bxa5 {[%clk 0:00:55.8]} 45. bxa5 {[%clk 0:00:25.1]}
45... a6 {[%clk 0:00:55.1]} 46. Kb3 {[%clk 0:00:23.8]} 46... Kd7 {[%clk
0:00:50.7]} 47. Bb6 {[%clk 0:00:22.9]} 47... Bf6 {[%clk 0:00:39]} 48. Kb4 {[%clk
0:00:20.1]} 48... Kc6 {[%clk 0:00:38.9]} 49. g4 {[%clk 0:00:16.3]} 49... hxg4
{[%clk 0:00:38.3]} 50. hxg4 {[%clk 0:00:17.2]} 50... Ne8 {[%clk 0:00:10.9]} 51.
Bc5 {[%clk 0:00:14.3]} 51... Nc7 {[%clk 0:00:08]} 52. Nc4 {[%clk 0:00:12.8]}
52... Ne6 {[%clk 0:00:07.6]} 53. Bd6 {[%clk 0:00:10.5]} 53... Nd4 {[%clk
0:00:04.4]} 54. Bxe5 {[%clk 0:00:09.5]} 54... Be7+ {[%clk 0:00:02.2]} 55. Kc3
{[%clk 0:00:07.9]} 55... Nb5+ {[%clk 0:00:02.6]} 56. Kd3 {[%clk 0:00:07.3]}
56... Bb4 {[%clk 0:00:02.6]} 57. Bd4 {[%clk 0:00:05.7]} 57... Nd6 {[%clk
0:00:02.3]} 58. e5 {[%clk 0:00:03.6]} 58... Nxc4 {[%clk 0:00:01.9]} 59. Kxc4
{[%clk 0:00:04.5]} 59... Bxa5 {[%clk 0:00:02.8]} 60. Bc5 {[%clk 0:00:03.5]}
60... Bd8 {[%clk 0:00:02.7]} 61. Bd6 {[%clk 0:00:02.8]} 61... a5 {[%clk
0:00:01.9]} 62. Ba3 {[%clk 0:00:01.7]} 62... Kd7 {[%clk 0:00:01.2]} 63. Kd5
{[%clk 0:00:01.3]} 63... Ke8 {[%clk 0:00:01.6]} 64. Ke6 {[%clk 0:00:01.2]} 64...
a4 {[%clk 0:00:02.1]} 0-1

[Event "*** Titled Tuesday Blitz"]
[Site "Chess.com"]
[Date "2020.12.01"]
[Round "11"]
[White "Savagelittlemole"]
[Black "theturtlemoves"]
[Result "0-1"]
[WhiteElo "2523"]
[BlackElo "2437"]
[TimeControl "180+1"]
[EndTime "12:07:23 PST"]
[Termination "theturtlemoves won by resignation"]

1. e4 {[%clk 0:03:00.9]} 1... e5 {[%clk 0:02:59.7]} 2. Nf3 {[%clk 0:03:00.7]}
2... Nc6 {[%clk 0:03:00.3]} 3. Bb5 {[%clk 0:03:00.5]} 3... a6 {[%clk 0:02:59.2]}
4. Ba4 {[%clk 0:03:00.5]} 4... Nf6 {[%clk 0:02:59.4]} 5. O-O {[%clk 0:03:00.4]}
5... Be7 {[%clk 0:02:59.9]} 6. Re1 {[%clk 0:02:59.5]} 6... b5 {[%clk 0:03:00.4]}
7. Bb3 {[%clk 0:02:59.6]} 7... d6 {[%clk 0:03:01]} 8. c3 {[%clk 0:02:59.9]} 8...
O-O {[%clk 0:03:00.9]} 9. h3 {[%clk 0:03:00.6]} 9... h6 {[%clk 0:03:00.9]} 10.
d4 {[%clk 0:03:00]} 10... Re8 {[%clk 0:03:00.1]} 11. Nbd2 {[%clk 0:02:59.1]}
11... Bf8 {[%clk 0:02:59.2]} 12. Bc2 {[%clk 0:02:46.4]} 12... Bb7 {[%clk
0:02:54.8]} 13. Nf1 {[%clk 0:02:45.5]} 13... exd4 {[%clk 0:02:54.4]} 14. Nxd4
{[%clk 0:02:39.8]} 14... Nxd4 {[%clk 0:02:50.3]} 15. Qxd4 {[%clk 0:02:38.2]}
15... c5 {[%clk 0:02:48.5]} 16. Qd1 {[%clk 0:02:28.9]} 16... Nxe4 {[%clk
0:02:27.9]} 17. Bf4 {[%clk 0:02:16.5]} 17... Qh4 {[%clk 0:02:24.9]} 18. Bxe4
{[%clk 0:02:11.2]} 18... Bxe4 {[%clk 0:02:17.5]} 19. Bg3 {[%clk 0:02:07.4]}
19... Qf6 {[%clk 0:02:11.7]} 20. Nd2 {[%clk 0:02:01.7]} 20... Bc6 {[%clk
0:02:08]} 21. Qg4 {[%clk 0:01:56.1]} 21... Qg5 {[%clk 0:01:59.1]} 22. Qxg5
{[%clk 0:01:51.4]} 22... hxg5 {[%clk 0:02:00]} 23. Rad1 {[%clk 0:01:46.4]} 23...
f6 {[%clk 0:01:55.7]} 24. Nf1 {[%clk 0:01:41.9]} 24... Rxe1 {[%clk 0:01:53.5]}
25. Rxe1 {[%clk 0:01:42.8]} 25... Kf7 {[%clk 0:01:50.6]} 26. Ne3 {[%clk
0:01:40.2]} 26... g6 {[%clk 0:01:43.2]} 27. Rd1 {[%clk 0:01:37.9]} 27... Rd8
{[%clk 0:01:38.5]} 28. a3 {[%clk 0:01:27.5]} 28... d5 {[%clk 0:01:32.3]} 29. f3
{[%clk 0:01:15.4]} 29... d4 {[%clk 0:01:30.3]} 30. cxd4 {[%clk 0:01:11.5]} 30...
Rxd4 {[%clk 0:01:27.8]} 31. Kf2 {[%clk 0:00:58.5]} 31... Rxd1 {[%clk 0:01:24.5]}
32. Nxd1 {[%clk 0:00:59]} 32... Ke6 {[%clk 0:01:21.5]} 33. Ke3 {[%clk
0:00:54.7]} 33... f5 {[%clk 0:01:19.5]} 34. Bc7 {[%clk 0:00:53.8]} 34... Be7
{[%clk 0:01:08.5]} 35. Nf2 {[%clk 0:00:44]} 35... Bf6 {[%clk 0:00:59.3]} 36. b3
{[%clk 0:00:40.4]} 36... Bd5 {[%clk 0:00:45]} 37. b4 {[%clk 0:00:40.2]} 37...
Bd4+ {[%clk 0:00:39.6]} 38. Ke2 {[%clk 0:00:38.9]} 38... c4 {[%clk 0:00:36.6]}
39. Nd1 {[%clk 0:00:37]} 39... f4 {[%clk 0:00:33.6]} 40. Bd8 {[%clk 0:00:32.7]}
40... Kf5 {[%clk 0:00:31]} 41. Kd2 {[%clk 0:00:28.4]} 41... Bc6 {[%clk
0:00:19.7]} 42. Nc3 {[%clk 0:00:25.9]} 42... Be3+ {[%clk 0:00:19.4]} 43. Kc2
{[%clk 0:00:23.8]} 43... Bd4 {[%clk 0:00:19.7]} 44. Kd2 {[%clk 0:00:22.1]} 44...
Be5 {[%clk 0:00:20.1]} 45. Kc2 {[%clk 0:00:20.1]} 45... Bd6 {[%clk 0:00:19.7]}
46. Kd2 {[%clk 0:00:17.8]} 46... Bd7 {[%clk 0:00:19.1]} 47. Ne4 {[%clk
0:00:15.6]} 47... Be5 {[%clk 0:00:15.6]} 48. Nc5 {[%clk 0:00:13.8]} 48... Bc8
{[%clk 0:00:14.9]} 49. Ne4 {[%clk 0:00:13.9]} 49... Bb2 {[%clk 0:00:14.8]} 50.
Nd6+ {[%clk 0:00:12]} 50... Ke6 {[%clk 0:00:15.3]} 51. Nxc8 {[%clk 0:00:12.9]}
51... Kd7 {[%clk 0:00:15.4]} 52. Bxg5 {[%clk 0:00:10.7]} 52... Kxc8 {[%clk
0:00:14.6]} 53. Bxf4 {[%clk 0:00:10.7]} 53... Kd7 {[%clk 0:00:11.9]} 54. Kc2
{[%clk 0:00:08.7]} 54... Bxa3 {[%clk 0:00:11.1]} 55. Bd2 {[%clk 0:00:07.8]}
55... Kc6 {[%clk 0:00:07]} 56. g4 {[%clk 0:00:06.6]} 56... a5 {[%clk 0:00:06]}
57. bxa5 {[%clk 0:00:05.1]} 57... Bd6 {[%clk 0:00:04.6]} 58. h4 {[%clk
0:00:04.8]} 58... b4 {[%clk 0:00:04.6]} 59. h5 {[%clk 0:00:03.3]} 59... gxh5
{[%clk 0:00:03.7]} 60. gxh5 {[%clk 0:00:03.3]} 60... Kb5 {[%clk 0:00:04.6]} 61.
h6 {[%clk 0:00:02.8]} 61... Be5 {[%clk 0:00:04.9]} 62. h7 {[%clk 0:00:02.3]}
62... b3+ {[%clk 0:00:05]} 63. Kb1 {[%clk 0:00:03.2]} 63... c3 {[%clk
0:00:05.1]} 64. Bxc3 {[%clk 0:00:03.3]} 64... Bxc3 {[%clk 0:00:05.4]} 65. f4
{[%clk 0:00:03.9]} 65... Kxa5 {[%clk 0:00:05.8]} 66. f5 {[%clk 0:00:04.4]} 66...
Kb4 {[%clk 0:00:06.2]} 67. Kc1 {[%clk 0:00:03.8]} 67... Bh8 {[%clk 0:00:06.2]}
68. Kb1 {[%clk 0:00:04.7]} 68... Ka3 {[%clk 0:00:04.9]} 69. f6 {[%clk
0:00:02.3]} 69... Bxf6 {[%clk 0:00:04.8]} 70. h8=Q {[%clk 0:00:02.6]} 70... Bxh8
{[%clk 0:00:05.1]} 71. Kc1 {[%clk 0:00:03]} 71... Ka2 {[%clk 0:00:05.7]} 72. Kd2
{[%clk 0:00:03.2]} 72... b2 {[%clk 0:00:06.6]} 0-1